bitfinex/quotes_SOLUSD_20251204
["timestamp","ask_amount","ask_price","bid_price","bid_amount"]
[1764810673728,7.66,145.62,145.6,6.78604185]
[1764810673932,7.46604185,145.65,145.57,8.80994492]
[1764810673933,7.66,145.63,145.59,6.78604185]
[1764810674119,6.86718857,145.62,145.59,6.78604185]
[1764810674449,7.66,145.63,145.61,6.78604185]
[1764810674636,14.52672165,145.63,145.61,6.78604185]
[1764810674954,14.52672165,145.63,145.6,6.78604185]
[1764810675742,14.52672165,145.63,145.61,6.78604185]
[1764810675950,6.86616433,145.65,145.62,6.78604185]
[1764810676146,6.86521298,145.67,145.63,6.78604185]
[1764810676347,6.86521298,145.67,145.62,8.80994492]
[1764810676348,7.66,145.66,145.62,8.80994492]
[1764810676542,7.66,145.66,145.64,6.78604185]
[1764810676923,6.86521298,145.67,145.64,6.78604185]
[1764810677233,16.988864,145.7,145.62,8.80994492]
[1764810677234,7.66,145.68,145.65,7.44604185]
[1764810677434,7.66,145.68,145.66,6.78604185]
[1764810677650,7.66,145.68,145.63,0.66]
[1764810677948,14.52475718,145.68,145.65,6.78604185]
[1764810678246,14.52475718,145.68,145.66,6.78604185]
[1764810678425,6.86475718,145.68,145.66,6.78604185]
[1764810678626,14.52475718,145.68,145.63,7.52657502]
[1764810678823,14.52475718,145.68,145.64,0.66]
[1764810679053,14.52475718,145.68,145.66,6.78604185]
[1764810679227,6.86388907,145.69,145.66,6.78604185]
[1764810679431,0.68,145.75,145.68,6.78604185]
[1764810679659,0.68,145.75,145.7,6.78604185]
[1764810679660,7.76,145.73,145.7,6.78604185]
[1764810680031,14.62233055,145.73,145.7,6.78604185]
[1764810680230,7.46604185,145.72,145.64,0.66]
[1764810680455,7.46604185,145.72,145.67,6.78604185]
[1764810680651,0.68,145.72,145.68,6.78604185]
[1764810680856,31.77734324,145.73,145.69,6.78604185]
[1764810681023,31.77734324,145.73,145.7,6.78604185]
[1764810681229,0.1,145.73,145.7,6.78604185]
[1764810681423,7.66,145.72,145.67,0.66]
[1764810681645,7.66,145.72,145.7,6.78604185]
[1764810682543,0.68,145.83,145.72,8.80994492]
[1764810682726,0.68,145.83,145.79,6.78604185]
[1764810683350,0.68,145.83,145.77,0.66]
[1764810683351,9.68914957,145.81,145.78,6.78604185]
[1764810683528,9.68914957,145.81,145.72,9.46994492]
[1764810683529,6.78604185,145.79,145.72,9.46994492]
[1764810683726,24.648864,145.8,145.71,14.44604185]
[1764810683930,6.78604185,145.78,145.73,6.78604185]
[1764810684331,7.66,145.8,145.77,6.78604185]
[1764810684526,2.83071199,145.81,145.78,6.78604185]
[1764810684731,9.68895985,145.81,145.77,6.78604185]
[1764810685159,2.83071199,145.81,145.78,6.78604185]
[1764810685359,2.83071199,145.81,145.78,0.66]
[1764810685530,10.36910642,145.81,145.78,6.78604185]
[1764810685730,9.68910642,145.81,145.78,6.78604185]
[1764810685935,9.68910642,145.81,145.79,6.78604185]
[1764810686457,9.68910642,145.81,145.77,0.66]
[1764810686458,9.68910642,145.81,145.77,6.78604185]
[1764810686667,16.47514827,145.81,145.74,6.86116855]
[1764810686955,8.34,145.8,145.76,6.78604185]
[1764810687163,15.12604185,145.8,145.75,6.78604185]
[1764810687355,6.85918101,145.79,145.75,6.78604185]
[1764810687669,7.53918101,145.79,145.75,6.78604185]
[1764810687840,0.68,145.78,145.74,6.78604185]
[1764810688041,0.68,145.78,145.73,0.66]
[1764810688241,0.68,145.78,145.74,6.78604185]
[1764810688445,7.66,145.79,145.76,6.78604185]
[1764810688646,6.85883078,145.8,145.77,6.78604185]
[1764810688845,0.68,145.79,145.75,6.78604185]
[1764810689037,17.34906919,145.81,145.77,6.78604185]
[1764810689245,9.68906919,145.81,145.77,6.78604185]
[1764810689554,6.78604185,145.79,145.73,6.78604185]
[1764810689776,0.68,145.8,145.74,6.78604185]
[1764810690062,8.34,145.8,145.76,6.78604185]
[1764810690242,15.12604185,145.8,145.75,6.78604185]
[1764810690443,15.12604185,145.8,145.74,0.66]
[1764810690648,6.78604185,145.77,145.71,6.78604185]
[1764810690955,6.78604185,145.73,145.68,6.78604185]
[1764810691147,7.66,145.72,145.68,6.78604185]
[1764810691463,16.988864,145.78,145.65,7.66]
[1764810691464,14.52153423,145.74,145.7,6.78604185]
[1764810691655,14.52153423,145.74,145.7,7.44604185]
[1764810692055,14.52153423,145.74,145.71,6.78604185]
[1764810692244,6.86153423,145.74,145.71,6.78604185]
[1764810692560,6.85918101,145.79,145.73,6.78604185]
[1764810692766,14.32522286,145.79,145.73,6.78604185]
[1764810693260,6.78604185,145.75,145.68,0.66]
[1764810693460,6.86200507,145.73,145.69,6.78604185]
[1764810693769,6.78604185,145.71,145.66,6.78604185]
[1764810694065,14.44604185,145.71,145.66,6.78604185]
[1764810694368,14.44604185,145.71,145.64,6.8659156]
[1764810694540,7.46604185,145.7,145.65,6.78604185]
[1764810694744,7.46604185,145.7,145.64,7.52609973]
[1764810694745,0.68,145.7,145.66,6.78604185]
[1764810694958,7.46604185,145.7,145.66,6.78604185]
[1764810695162,7.66,145.71,145.66,6.78604185]
[1764810695337,17.15726424,145.72,145.66,6.78604185]
[1764810695538,6.86259344,145.72,145.67,7.44604185]
[1764810695766,6.86259344,145.72,145.68,7.44604185]
[1764810696565,7.46604185,145.71,145.65,0.66]
[1764810696772,0.68,145.71,145.67,6.78604185]
[1764810697076,24.01878339,145.72,145.67,6.78604185]
[1764810697245,7.54259344,145.72,145.67,0.66]
[1764810697567,6.86259344,145.72,145.68,7.44604185]
[1764810698456,6.86259344,145.72,145.68,11.16259196]
[1764810698764,18.16259196,145.73,145.69,11.16259196]
[1764810698765,6.86204329,145.73,145.69,11.16259196]
[1764810699666,18.84259196,145.74,145.71,10.50259196]
[1764810699667,6.86160177,145.74,145.71,10.50259196]
[1764810699966,14.52102339,145.76,145.72,10.50259196]
[1764810700342,6.86247598,145.72,145.65,0.65]
[1764810700543,6.86247598,145.72,145.62,0.65]
[1764810700544,10.50259196,145.69,145.62,0.65]
[1764810700755,7.66,145.68,145.64,10.50259196]
[1764810701352,18.82259196,145.68,145.63,10.50259196]
[1764810701567,8.32,145.68,145.63,10.50259196]
[1764810701767,8.32,145.68,145.64,10.50259196]
[1764810702072,16.308864,145.69,145.64,18.01844859]
[1764810702253,17.36506794,145.72,145.67,10.50259196]
[1764810702458,6.86247598,145.72,145.68,11.18259196]
[1764810703060,6.86247598,145.72,145.69,11.18259196]
[1764810703660,6.86247598,145.72,145.69,10.50259196]
[1764810704560,6.86200507,145.73,145.7,10.50259196]
[1764810704974,0.65,145.73,145.68,7.54423999]
[1764810705150,0.65,145.73,145.67,7.66]
[1764810705151,11.15259196,145.72,145.67,7.66]
[1764810705473,10.50259196,145.71,145.67,7.66]
[1764810705680,10.50259196,145.7,145.64,0.68]
[1764810705982,7.66,145.69,145.65,10.50259196]
[1764810706672,6.86436024,145.68,145.65,11.18259196]
[1764810707179,14.52398852,145.69,145.65,11.18259196]
[1764810707379,14.52398852,145.69,145.65,18.04820853]
[1764810707891,14.52398852,145.69,145.65,18.04825114]
[1764810708188,18.16259196,145.72,145.67,10.50259196]
[1764810708391,10.50259196,145.71,145.66,10.50259196]
[1764810708885,6.86341798,145.7,145.66,11.18259196]
[1764810709084,6.86341798,145.7,145.67,10.50259196]
[1764810709382,17.15405053,145.74,145.69,10.50259196]
[1764810709572,7.66,145.73,145.69,10.50259196]
[1764810709777,17.15191214,145.76,145.71,10.50259196]
[1764810709979,27.6545041,145.76,145.71,10.50259196]
[1764810710161,17.15191214,145.76,145.72,0.68]
[1764810710357,7.66,145.77,145.72,0.68]
[1764810710358,10.50259196,145.77,145.72,11.18259196]
[1764810710564,18.01318471,145.76,145.71,10.50259196]
[1764810710783,10.50259196,145.75,145.69,7.54360342]
[1764810710986,11.15259196,145.75,145.7,10.50259196]
[1764810711155,7.66,145.74,145.7,10.50259196]
[1764810711355,7.66,145.74,145.7,11.18259196]
[1764810711680,7.66,145.74,145.71,11.18259196]
[1764810711880,7.66,145.75,145.72,10.50259196]
[1764810712071,18.81259196,145.75,145.68,0.68]
[1764810712274,10.50259196,145.73,145.68,11.18259196]
[1764810712590,7.66,145.72,145.68,11.18259196]
[1764810712794,14.52273642,145.72,145.68,11.18259196]
[1764810713093,0.65,145.71,145.65,7.54546831]
[1764810713260,31.67892637,145.72,145.66,11.18259196]
[1764810713460,10.50259196,145.71,145.66,0.68]
[1764810713799,42.18151833,145.72,145.67,10.50259196]
[1764810714002,7.66,145.71,145.67,10.50259196]
[1764810714178,7.66,145.71,145.67,18.04732146]
[1764810714495,7.66,145.71,145.67,11.18259196]
[1764810714996,14.52330143,145.71,145.67,11.18259196]
[1764810715177,25.02589339,145.71,145.67,0.68]
[1764810715371,14.52330143,145.71,145.67,18.04738671]
[1764810715685,27.65878191,145.72,145.68,10.50259196]
[1764810715686,14.52258431,145.72,145.68,10.50259196]
[1764810715866,6.86213564,145.73,145.69,10.50259196]
[1764810716072,14.52213564,145.73,145.69,11.18259196]
[1764810716578,6.86213564,145.73,145.69,11.18259196]
[1764810716770,6.8610903,145.75,145.71,10.50259196]
[1764810716973,14.5210903,145.75,145.71,11.18259196]
[1764810717158,25.67368226,145.75,145.7,10.50259196]
[1764810717678,25.67368226,145.75,145.7,11.18259196]
[1764810717987,42.82634092,145.75,145.7,11.18259196]
[1764810718400,24.01374896,145.75,145.73,10.50259196]
[1764810718569,24.01374896,145.75,145.71,11.18259196]
[1764810719366,24.01374896,145.75,145.7,10.50259196]
[1764810719584,0.65,145.74,145.7,10.50259196]
[1764810719782,6.8610903,145.75,145.71,0.68]
[1764810719972,24.01374896,145.75,145.68,14.52401929]
[1764810720181,24.01374896,145.75,145.71,10.50259196]
[1764810720518,6.85918101,145.79,145.74,10.50259196]
[1764810720806,9.68930001,145.81,145.78,10.50259196]
[1764810721166,9.68930001,145.81,145.76,0.68]
[1764810721369,10.50259196,145.79,145.73,0.68]
[1764810721570,0.65,145.8,145.75,10.50259196]
[1764810721789,11.15259196,145.8,145.75,10.50259196]
[1764810721999,0.65,145.8,145.73,0.68]
[1764810722208,11.15259196,145.8,145.75,10.50259196]
[1764810722576,0.65,145.79,145.75,10.50259196]
[1764810722777,7.66,145.78,145.75,10.50259196]
[1764810723087,7.66,145.78,145.74,10.50259196]
[1764810723088,6.86012211,145.77,145.74,10.50259196]
[1764810723309,6.86012211,145.77,145.74,11.18259196]
[1764810723479,6.86012211,145.77,145.75,10.50259196]
[1764810723687,6.86012211,145.77,145.74,11.18259196]
[1764810723876,6.86012211,145.77,145.72,18.16259196]
[1764810723877,18.01271407,145.77,145.72,18.16259196]
[1764810724076,24.01042738,145.77,145.73,11.18259196]
[1764810724397,6.86012211,145.77,145.7,0.68]
[1764810724703,34.51301934,145.77,145.7,0.68]
[1764810724908,35.16301934,145.77,145.72,10.50259196]
[1764810725207,35.16301934,145.77,145.73,10.50259196]
[1764810725208,24.66042738,145.77,145.73,10.50259196]
[1764810726783,6.86106346,145.75,145.72,11.18259196]
[1764810726972,6.86106346,145.75,145.73,10.50259196]
[1764810727178,6.86106346,145.75,145.72,0.68]
[1764810727407,6.86106346,145.75,145.73,10.50259196]
[1764810727608,2.83071199,145.81,145.75,8.80994492]
[1764810727911,9.6890403,145.81,145.75,8.80994492]
[1764810728115,10.3390403,145.81,145.77,10.50259196]
[1764810728289,27.48464073,145.81,145.77,10.50259196]
[1764810728492,26.83464073,145.81,145.77,11.18259196]
[1764810729294,0.65,145.8,145.76,10.50259196]
[1764810729491,37.33723269,145.81,145.75,0.68]
[1764810729691,37.98723269,145.81,145.76,10.50259196]
[1764810730202,9.6890403,145.81,145.77,11.18259196]
[1764810730405,9.6890403,145.81,145.77,0.68]
[1764810730601,9.6890403,145.81,145.77,11.18259196]
[1764810731077,10.3390403,145.81,145.77,11.18259196]
[1764810731279,27.48464073,145.81,145.77,11.18259196]
[1764810731483,11.15259196,145.8,145.75,10.50259196]
[1764810731801,18.81259196,145.79,145.74,10.50259196]
[1764810731977,8.31,145.79,145.75,10.50259196]
[1764810732178,45.64723269,145.81,145.76,10.50259196]
[1764810732375,0.67,145.8,145.76,10.50259196]
[1764810732681,11.17259196,145.8,145.75,10.50259196]
[1764810732925,6.85918101,145.79,145.75,10.50259196]
[1764810733206,6.85883991,145.8,145.76,11.22259196]
[1764810733427,14.51883991,145.8,145.77,10.50259196]
[1764810733615,0.67,145.79,145.75,10.50259196]
[1764810733790,0.67,145.79,145.75,0.72]
[1764810733977,24.00561631,145.8,145.76,10.50259196]
[1764810734182,7.66,145.79,145.76,10.50259196]
[1764810734497,6.85883991,145.8,145.77,10.50259196]
[1764810734696,6.85883991,145.8,145.76,11.22259196]
[1764810735582,24.00561631,145.8,145.76,11.22259196]
[1764810735980,24.00561631,145.8,145.77,0.72]
[1764810736181,2.83071199,145.81,145.79,10.50259196]
[1764810736409,2.83071199,145.81,145.8,10.50259196]
[1764810736610,2.83071199,145.81,145.78,0.72]
[1764810736785,2.83071199,145.81,145.8,10.50259196]
[1764810737198,2.83071199,145.81,145.8,11.22259196]
[1764810737511,2.83071199,145.81,145.8,26.89124744]
[1764810738709,2.83071199,145.81,145.8,37.3938394]
[1764810739390,2.83071199,145.81,145.8,45.0738394]
[1764810739816,2.83071199,145.81,145.8,23.79166836]
[1764810741323,2.83071199,145.81,145.8,26.88880832]
[1764810741536,2.83071199,145.81,145.8,33.74751888]
[1764810741821,2.83071199,145.81,145.8,43.2774638]
[1764810742220,2.83071199,145.81,145.8,19.7295388]
[1764810742423,0.1,145.87,145.83,16.308864]
[1764810742608,0.67,145.95,145.84,32.77880892]
[1764810742930,6.85084686,145.97,145.94,10.50259196]
[1764810743113,0.67,145.97,145.96,10.50259196]
[1764810743460,34.84035356,146.0,145.96,10.50259196]
[1764810743609,0.67,145.99,145.96,10.50259196]
[1764810743803,0.67,145.99,145.97,10.50259196]
[1764810744218,0.67,145.99,145.98,10.50259196]
[1764810744426,0.67,145.99,145.96,10.50259196]
[1764810745004,11.17259196,145.99,145.94,10.50259196]
[1764810745200,0.67,145.99,145.95,10.50259196]
[1764810745632,25.03284541,145.98,145.84,1.99999999]
[1764810745814,10.50259196,145.95,145.9,10.50259196]
[1764810746010,7.68,145.94,145.9,10.50259196]
[1764810746419,8.35,145.94,145.91,10.50259196]
[1764810746832,0.67,145.94,145.91,10.50259196]
[1764810747017,7.68,145.93,145.91,10.50259196]
[1764810747221,7.68,145.93,145.89,10.50259196]
[1764810747650,7.68,145.93,145.9,10.50259196]
[1764810747651,6.85307017,145.92,145.9,10.50259196]
[1764810748014,6.85307017,145.92,145.85,6.85590787]
[1764810748352,6.85307017,145.92,145.89,10.50259196]
[1764810748640,6.85307017,145.92,145.85,6.85590787]
[1764810748641,7.66,145.92,145.91,10.50259196]
[1764810750746,7.66,145.93,145.91,10.50259196]
[1764810751245,0.67,145.92,145.89,10.50259196]
[1764810751618,7.52335646,145.92,145.9,10.50259196]
[1764810751946,7.66,145.91,145.9,10.50259196]
[1764810752347,7.52213101,145.94,145.9,10.50259196]
[1764810752348,7.66,145.92,145.9,10.50259196]
[1764810752569,7.66,145.92,145.91,10.50259196]
[1764810753049,28.29966434,145.97,145.91,10.50259196]
[1764810753050,0.67,145.97,145.91,10.50259196]
[1764810753233,0.67,145.97,145.9,6.85390282]
[1764810753234,7.66,145.96,145.9,6.85390282]
[1764810753436,7.66,145.96,145.89,6.8544303]
[1764810753751,7.66,145.96,145.92,10.50259196]
[1764810753752,6.85166152,145.95,145.92,10.50259196]
[1764810753923,10.50259196,145.97,145.94,10.50259196]
[1764810753924,6.85117239,145.97,145.94,10.50259196]
[1764810754240,18.16259196,145.96,145.92,6.85301511]
[1764810754628,18.16259196,145.96,145.88,9.16994492]
[1764810754629,10.50259196,145.95,145.9,10.50259196]
[1764810755326,10.50259196,145.94,145.89,17.35706724]
[1764810755532,10.50259196,145.93,145.89,6.85447528]
[1764810755839,10.50259196,145.92,145.89,16.308864]
[1764810756024,10.50259196,145.92,145.88,6.85490318]
[1764810756025,18.16259196,145.92,145.88,6.85490318]
[1764810756232,18.16259196,145.92,145.87,6.85537459]
[1764810756448,18.16259196,145.92,145.87,17.35796655]
[1764810756820,27.990948,146.0,145.91,26.81145596]
[1764810757042,27.990948,146.0,145.96,8.80994492]
[1764810757419,27.990948,146.0,145.95,8.80994492]
[1764810757622,10.50259196,145.99,145.95,16.308864]
[1764810757832,27.990948,146.0,145.96,8.80994492]
[1764810758721,27.990948,146.0,145.96,15.56672299]
[1764810758917,27.990948,146.0,145.95,23.16046442]
[1764810758918,27.990948,146.0,145.95,40.28961823]
[1764810759149,27.990948,146.0,145.96,8.80994492]
[1764810759354,27.990948,146.0,145.95,16.308864]
[1764810759548,27.990948,146.0,145.95,23.16047193]
[1764810759758,35.670948,146.0,145.96,15.66097253]
[1764810760460,6.75677807,145.98,145.92,7.68]
[1764810760756,6.75677807,145.97,145.93,25.11880892]
[1764810760950,6.75677807,145.97,145.93,8.80994492]
[1764810761243,6.75677807,145.97,145.94,6.85209462]
[1764810761436,6.75677807,145.97,145.93,15.66247457]
[1764810761822,6.75677807,145.95,145.93,16.308864]
[1764810762047,7.68,145.95,145.91,25.11880892]
[1764810762228,14.43677807,145.95,145.91,15.66346026]
[1764810762630,0.67,145.97,145.92,6.85294548]
[1764810762833,6.75677807,145.95,145.91,6.85349057]
[1764810763052,6.75677807,145.95,145.91,31.97229949]
[1764810763247,7.66,145.96,145.91,31.97229949]
[1764810763463,27.990948,146.0,145.96,16.308864]
[1764810763628,27.990948,146.0,145.99,8.80994492]
[1764810763832,27.990948,146.0,145.99,16.308864]
[1764810764329,27.990948,146.0,145.99,16.668864]
[1764810764527,27.990948,146.0,145.99,32.32859315]
[1764810764725,27.990948,146.0,145.99,39.08537122]
[1764810764958,7.68,146.04,146.02,16.308864]
[1764810765134,7.68,146.04,145.99,39.90096779]
[1764810765135,7.68,146.04,146.03,16.308864]
[1764810765333,7.68,146.07,146.03,16.308864]
[1764810765731,106.77361854,146.11,146.05,13.60374828]
[1764810765942,6.85677807,146.1,146.05,13.60374828]
[1764810766259,6.85677807,146.1,146.03,16.308864]
[1764810766260,0.78,146.1,146.03,16.308864]
[1764810766548,7.68,146.09,146.04,23.15605874]
[1764810766753,6.75677807,146.08,146.04,23.15605874]
[1764810767134,0.78,146.1,146.04,23.51605874]
[1764810767444,7.68,146.09,146.04,30.27283681]
[1764810767754,0.1,146.1,146.04,47.39143445]
[1764810768256,0.1,146.1,146.05,15.92672299]
[1764810768257,14.53677807,146.1,146.05,15.92672299]
[1764810769140,0.78,146.1,146.04,23.15605874]
[1764810769451,106.77361854,146.11,146.04,23.15605874]
[1764810769452,102.93908561,146.11,146.09,8.80994492]
[1764810769657,102.93908561,146.11,146.1,23.24672299]
[1764810769855,102.93908561,146.11,146.1,30.09134995]
[1764810770062,53.73839597,146.11,146.1,23.33457188]
[1764810770262,45.87592558,146.24,146.23,27.11880891]
[1764810770465,7.7,146.32,146.23,39.55558699]
[1764810770661,7.7,146.32,146.28,6.75677807]
[1764810770843,111.09979694,146.36,146.31,6.75677807]
[1764810771040,111.09979694,146.36,146.32,6.75677807]
[1764810771546,6.75677807,146.34,146.29,16.308864]
[1764810771861,111.09979694,146.36,146.29,23.1445344]
[1764810772042,111.09979694,146.36,146.34,6.75677807]
[1764810772243,111.09979694,146.36,146.33,6.75677807]
[1764810772439,111.09979694,146.36,146.35,16.308864]
[1764810772646,111.09979694,146.36,146.29,25.92501347]
[1764810772846,111.09979694,146.36,146.33,6.75677807]
[1764810773049,111.09979694,146.36,146.3,8.80994492]
[1764810773050,6.75677807,146.35,146.3,6.75677807]
[1764810773341,111.09979694,146.36,146.32,6.75677807]
[1764810773544,7.7,146.35,146.3,8.80994492]
[1764810773862,111.09979694,146.36,146.29,6.8356704]
[1764810773863,74.95796855,146.36,146.31,31.62180984]
[1764810774044,6.75677807,146.33,146.29,6.83569463]
[1764810774246,6.75677807,146.34,146.3,6.83524739]
[1764810774461,7.72,146.33,146.3,13.59202546]
[1764810774646,7.72,146.33,146.3,6.83524739]
[1764810774848,8.4,146.33,146.27,6.75677807]
[1764810775040,75.63796855,146.36,146.31,6.83480281]
[1764810775368,7.72,146.35,146.31,13.59158088]
[1764810775554,7.72,146.34,146.31,23.14366681]
[1764810776247,6.75677807,146.33,146.29,16.308864]
[1764810776758,7.72,146.33,146.29,23.06564207]
[1764810776951,14.47677807,146.33,146.28,6.75677807]
[1764810777169,14.47677807,146.33,146.27,15.56672299]
[1764810777373,82.47047061,146.36,146.26,33.40129084]
[1764810777567,82.47047061,146.36,146.31,6.83460894]
[1764810777568,14.47677807,146.35,146.31,6.83460894]
[1764810778086,74.95796855,146.36,146.3,13.59204806]
[1764810778243,14.47677807,146.35,146.3,6.83526999]
[1764810778450,6.75677807,146.34,146.3,6.83526999]
[1764810778658,14.47677807,146.35,146.3,6.83526999]
[1764810778872,14.47677807,146.35,146.3,13.59204806]
[1764810779059,6.75677807,146.35,146.3,6.83526999]
[1764810779261,7.72,146.34,146.3,6.83526999]
[1764810779669,14.47677807,146.34,146.3,6.83526999]
[1764810779865,13.97677807,146.34,146.29,22.40245164]
[1764810780581,7.22,146.34,146.29,39.49179472]
[1764810780779,6.75677807,146.3,146.21,19.72905016]
[1764810781074,6.75677807,146.25,146.21,6.83943404]
[1764810781280,14.47677807,146.24,146.21,6.83943404]
[1764810781646,6.75677807,146.25,146.21,6.83943404]
[1764810781853,7.72,146.24,146.21,6.83943404]
[1764810782362,14.47677807,146.24,146.2,6.83989094]
[1764810782565,7.72,146.24,146.21,8.80994492]
[1764810782771,0.68,146.27,146.21,8.80994492]
[1764810782975,7.72,146.25,146.21,8.80994492]
[1764810783557,14.47677807,146.25,146.2,13.59666901]
[1764810783974,6.75677807,146.25,146.2,13.59666901]
[1764810784271,8.4,146.24,146.2,6.83989094]
[1764810784451,7.72,146.24,146.19,15.56672299]
[1764810784652,7.43677807,146.23,146.19,6.84035304]
[1764810784858,0.68,146.23,146.18,17.10146719]
[1764810785178,7.43677807,146.22,146.18,6.84069238]
[1764810785472,7.43677807,146.22,146.19,6.84029568]
[1764810785775,6.75677807,146.2,146.16,6.84177918]
[1764810785967,14.47677807,146.2,146.15,15.65223024]
[1764810786353,15.15677807,146.2,146.16,16.308864]
[1764810786563,14.47677807,146.2,146.16,16.308864]
[1764810786876,7.72,146.21,146.17,6.75677807]
[1764810787048,6.75677807,146.22,146.17,6.75677807]
[1764810787049,14.47677807,146.22,146.17,6.75677807]
[1764810787251,7.72,146.22,146.17,6.75677807]
[1764810787471,8.4,146.22,146.15,8.80994492]
[1764810787647,8.4,146.22,146.17,6.75677807]
[1764810787846,8.4,146.22,146.18,6.8408811]
[1764810788068,0.68,146.22,146.18,13.59765917]
[1764810788268,8.4,146.22,146.18,13.59765917]
[1764810788513,0.68,146.29,146.18,6.8408811]
[1764810788674,15.15677807,146.28,146.21,16.308864]
[1764810788876,15.15677807,146.28,146.18,6.8408811]
[1764810788877,6.75677807,146.24,146.18,6.8408811]
[1764810789086,6.75677807,146.24,146.18,13.59765917]
[1764810789265,8.4,146.27,146.18,13.59765917]
[1764810789266,0.68,146.23,146.18,13.59765917]
[1764810789581,15.15677807,146.27,146.22,6.75677807]
[1764810789751,7.72,146.27,146.22,6.75677807]
[1764810789958,1.99999999,146.37,146.26,23.06564207]
[1764810789959,0.68,146.32,146.26,23.06564207]
[1764810790172,0.68,146.32,146.28,6.75677807]
[1764810790454,7.43677807,146.32,146.26,16.308864]
[1764810790653,7.43677807,146.32,146.27,6.75677807]
[1764810790876,74.95796855,146.36,146.28,0.68362045]
[1764810791054,75.63796855,146.36,146.32,6.75677807]
[1764810791253,74.95796855,146.36,146.33,6.75677807]
[1764810791479,74.95796855,146.36,146.31,8.80994492]
[1764810791680,74.95796855,146.36,146.35,6.75677807]
[1764810791854,74.95796855,146.36,146.35,13.58971281]
[1764810792976,74.95796855,146.36,146.35,22.39965773]
[1764810793671,74.95796855,146.36,146.35,15.64287966]
[1764810793871,74.95796855,146.36,146.34,6.75677807]
[1764810794175,74.95796855,146.36,146.35,6.75677807]
[1764810795158,75.64796855,146.36,146.31,13.59147808]
[1764810795358,75.64796855,146.36,146.27,8.80994492]
[1764810795359,8.41,146.35,146.3,13.59201248]
[1764810795584,15.16677807,146.35,146.3,13.59201248]
[1764810795882,6.75677807,146.32,146.24,17.09510936]
[1764810796054,14.47677807,146.31,146.26,6.75677807]
[1764810796258,7.72,146.31,146.28,6.83610575]
[1764810796462,8.41,146.31,146.28,6.83610575]
[1764810796658,0.69,146.3,146.26,15.64671656]
[1764810796984,0.69,146.3,146.27,6.83666024]
[1764810797279,7.44677807,146.3,146.26,6.83708657]
[1764810797463,7.72,146.29,146.27,6.83660265]
[1764810798171,0.69,146.31,146.27,13.59338072]
[1764810798487,0.69,146.3,146.27,30.68506049]
[1764810798782,7.44677807,146.3,146.25,6.75677807]
[1764810798979,7.72,146.29,146.26,6.83705562]
[1764810799184,8.41,146.29,146.26,13.59383369]
[1764810799382,0.69,146.32,146.27,6.75677807]
[1764810799683,0.69,146.35,146.28,6.75677807]
[1764810799886,7.72,146.34,146.3,6.75677807]
[1764810800186,7.72,146.34,146.3,6.83526999]
[1764810800389,8.41,146.33,146.3,6.83526999]
[1764810801187,0.69,146.33,146.28,6.75677807]
[1764810801372,0.69,146.32,146.29,6.75677807]
[1764810801772,0.69,146.32,146.29,13.59234732]
[1764810801973,8.41,146.35,146.31,6.83480281]
[1764810802288,15.16677807,146.35,146.31,6.83480281]
[1764810802582,0.69,146.34,146.31,6.83480281]
[1764810802789,0.69,146.34,146.27,8.80994492]
[1764810802790,7.44677807,146.34,146.28,6.75677807]
[1764810802977,6.75677807,146.32,146.26,24.028864]
[1764810803178,6.75677807,146.32,146.27,13.59311411]
[1764810803509,0.69,146.31,146.28,6.83618505]
[1764810803662,7.44677807,146.31,146.26,30.78564207]
[1764810803870,0.69,146.31,146.2,34.19935058]
[1764810804064,0.69,146.31,146.21,7.72]
[1764810804065,8.41,146.31,146.21,7.72]
[1764810804269,0.69,146.31,146.27,6.75677807]
[1764810804584,0.69,146.31,146.25,8.80994492]
[1764810804890,0.69,146.31,146.28,6.75677807]
[1764810805185,7.44677807,146.31,146.25,6.75677807]
[1764810805369,7.44677807,146.3,146.24,14.47677807]
[1764810805690,0.69,146.3,146.2,7.72]
[1764810805989,0.69,146.29,146.26,6.75677807]
[1764810806284,0.69,146.29,146.27,6.75677807]
[1764810807186,6.75677807,146.33,146.29,6.83573723]
[1764810807187,0.69,146.33,146.29,6.83573723]
[1764810807579,0.69,146.35,146.29,6.83573723]
[1764810807782,0.69,146.35,146.32,6.75677807]
[1764810807963,0.69,146.35,146.31,6.75677807]
[1764810808389,0.69,146.35,146.29,23.92508031]
[1764810808390,0.69,146.35,146.32,6.75677807]
[1764810809063,0.69,146.35,146.32,13.5910914]